bitfinex/quotes_SOLUSD_20250821
["timestamp","ask_amount","ask_price","bid_price","bid_amount"]
[1755767740257,47.74411772,184.77,184.76,0.1]
[1755767740442,59.53941432,184.77,184.76,0.1]
[1755767740750,61.99971173,184.77,184.76,0.1]
[1755767741058,61.70961132,184.77,184.76,0.1]
[1755767741257,64.16990873,184.77,184.76,0.1]
[1755767741643,63.50990873,184.77,184.76,0.1]
[1755767742140,64.16990873,184.77,184.76,0.1]
[1755767742459,65.56336883,184.77,184.76,0.1]
[1755767742776,69.41712634,184.77,184.76,0.1]
[1755767745749,64.90336883,184.77,184.76,0.1]
[1755767746335,65.56336883,184.77,184.76,0.1]
[1755767746581,64.90336883,184.77,184.76,0.1]
[1755767747083,4.99401731,184.77,184.76,0.76]
[1755767747303,4.99401731,184.77,184.76,0.1]
[1755767747304,49.11757782,184.77,184.76,0.1]
[1755767749965,63.37317183,184.77,184.76,0.1]
[1755767750157,62.71317183,184.77,184.76,0.1]
[1755767750541,67.22692934,184.77,184.76,0.1]
[1755767751958,69.39724434,184.77,184.76,0.1]
[1755767753172,65.54348683,184.77,184.76,0.1]
[1755767755970,69.39724434,184.77,184.76,0.1]
[1755767757178,68.73724434,184.77,184.76,0.1]
[1755767757479,69.41724434,184.77,184.76,0.1]
[1755767757684,61.02972932,184.77,184.76,0.1]
[1755767757851,64.88348683,184.77,184.76,0.1]
[1755767758762,22.44348683,184.77,184.76,0.1]
[1755767758978,64.86348683,184.77,184.76,0.1]
[1755767759976,45.24382031,184.77,184.76,0.81]
[1755767760276,2.82382031,184.77,184.76,0.81]
[1755767760492,42.42,184.77,184.76,0.81]
[1755767761150,42.42,184.77,184.76,4.66375751]
[1755767761354,42.42,184.77,184.76,0.81]
[1755767761770,42.42,184.77,184.76,4.66375751]
[1755767762358,42.42,184.77,184.76,0.81]
[1755767763176,42.42,184.77,184.76,0.1]
[1755767763353,46.27375751,184.77,184.76,0.1]
[1755767763976,3.85375751,184.77,184.76,0.1]
[1755767764274,46.27375751,184.77,184.76,0.1]
[1755767766889,42.42,184.77,184.76,0.1]
[1755767767382,46.27375751,184.77,184.76,0.1]
[1755767769602,42.42,184.77,184.76,0.1]
[1755767769767,46.27375751,184.77,184.76,0.1]
[1755767770275,42.42,184.77,184.76,0.1]
[1755767770998,46.27375751,184.77,184.76,0.1]
[1755767771302,60.54935152,184.77,184.76,0.1]
[1755767773196,59.86935152,184.77,184.76,0.1]
[1755767773392,60.54935152,184.77,184.76,0.1]
[1755767776087,60.50935152,184.77,184.76,0.1]
[1755767780183,56.65559401,184.77,184.76,0.1]
[1755767780385,60.50935152,184.77,184.76,0.1]
[1755767780987,63.333897,184.77,184.76,0.1]
[1755767781914,65.504095,184.77,184.76,0.1]
[1755767782296,63.333897,184.77,184.76,0.1]
[1755767784780,59.48013949,184.77,184.76,0.1]
[1755767784980,63.333897,184.77,184.76,0.1]
[1755767787210,67.18765451,184.77,184.76,0.1]
[1755767787587,69.35796951,184.77,184.76,0.1]
[1755767789308,72.94728657,184.77,184.76,0.1]
[1755767790812,18.59045449,184.77,184.76,0.1]
[1755767791008,64.804212,184.77,184.76,0.78]
[1755767791212,69.33796951,184.77,184.76,0.1]
[1755767791390,64.804212,184.77,184.76,0.1]
[1755767791998,64.804212,184.77,184.76,0.78]
[1755767792398,47.35486048,184.77,184.76,0.1]
[1755767792582,6.67830299,184.77,184.76,0.78]
[1755767792786,49.03830299,184.77,184.76,0.78]
[1755767793107,49.03830299,184.77,184.76,0.1]
[1755767794516,66.48765451,184.77,184.76,0.1]
[1755767795612,70.07524564,184.77,184.76,0.1]
[1755767796203,96.35956878,184.77,184.76,0.1]
[1755767796611,39.59559401,184.76,184.75,0.1]
[1755767796810,47.03694265,184.76,184.75,0.1]
[1755767797607,89.68126579,184.76,184.75,0.1]
[1755767797808,86.09367466,184.76,184.75,0.1]
[1755767798021,45.90434366,184.76,184.75,0.1]
[1755767798297,88.26434366,184.76,184.75,0.1]
[1755767799415,91.85059611,184.76,184.75,0.1]
[1755767799608,88.26434366,184.76,184.75,0.1]
[1755767800835,45.90434366,184.76,184.75,0.1]
[1755767801038,88.26434366,184.76,184.75,0.1]
[1755767803724,91.84984462,184.76,184.75,0.1]
[1755767803909,62.26434366,184.76,184.75,0.1]
[1755767805002,65.85081019,184.76,184.75,0.1]
[1755767806043,61.99705268,184.76,184.75,0.1]
[1755767806252,65.85081019,184.76,184.75,0.1]
[1755767809227,61.99705268,184.76,184.75,0.1]
[1755767809438,65.85081019,184.76,184.75,0.1]
[1755767810825,19.90434366,184.76,184.75,0.1]
[1755767811061,58.41058615,184.76,184.75,0.1]
[1755767811259,62.26434366,184.76,184.75,0.1]
[1755767812152,65.855501,184.76,184.75,0.1]
[1755767812363,62.00174349,184.76,184.75,0.1]
[1755767812530,65.855501,184.76,184.75,0.1]
[1755767815248,23.495501,184.76,184.75,0.1]
[1755767815445,65.855501,184.76,184.75,0.1]
[1755767816530,62.00174349,184.76,184.75,0.1]
[1755767816730,65.85553887,184.76,184.75,0.1]
[1755767817549,61.98002052,184.76,184.75,0.1]
[1755767817764,59.80935152,184.76,184.75,0.1]
[1755767818065,60.09367466,184.76,184.75,0.1]
[1755767818273,59.95151309,184.76,184.75,0.1]
[1755767818444,60.09367466,184.76,184.75,0.1]
[1755767819344,17.44935152,184.76,184.75,0.75]
[1755767819549,59.80935152,184.76,184.75,0.75]
[1755767820143,55.95559401,184.76,184.75,0.75]
[1755767820484,42.36,184.76,184.75,4.60375751]
[1755767820642,42.36,184.76,184.75,0.75]
[1755767820838,42.36,184.76,184.75,4.60375751]
[1755767821166,42.36,184.76,184.75,0.75]
[1755767821667,46.21375751,184.76,184.75,0.1]
[1755767822549,59.80935152,184.76,184.75,0.1]
[1755767823070,63.68126676,184.76,184.75,0.1]
[1755767823471,67.66607823,184.76,184.75,0.1]
[1755767823640,70.2459357,184.76,184.75,0.1]
[1755767824357,65.98260785,184.76,184.75,0.1]
[1755767824562,65.98260785,184.76,184.74,0.03]
[1755767824563,52.10219376,184.76,184.74,0.03]
[1755767824750,25.30465604,184.75,184.74,0.03]
[1755767825157,23.49228876,184.75,184.74,0.03]
[1755767825351,26.31734498,184.75,184.74,0.03]
[1755767825772,24.14632298,184.75,184.74,0.03]
[1755767826572,20.29035357,184.75,184.74,0.03]
[1755767826870,20.55873088,184.75,184.74,0.03]
[1755767827675,20.27440774,184.75,184.74,0.68]
[1755767828056,20.27440774,184.75,184.74,0.03]
[1755767828442,16.42065023,184.75,184.74,0.03]
[1755767828877,20.27440774,184.75,184.74,0.03]
[1755767829765,21.27873088,184.75,184.74,0.03]
[1755767829953,24.86352057,184.75,184.74,0.03]
[1755767831773,21.27873088,184.75,184.74,0.03]
[1755767833450,24.86089118,184.75,184.74,0.03]
[1755767834070,24.14089118,184.75,184.74,0.03]
[1755767834379,16.70497337,184.75,184.74,0.03]
[1755767834551,24.14339994,184.75,184.74,0.03]
[1755767834746,20.55873088,184.75,184.74,0.03]
[1755767835465,21.27873088,184.75,184.74,0.03]
[1755767835671,24.86839752,184.75,184.74,0.03]
[1755767836974,24.14839752,184.75,184.74,0.03]
[1755767837173,20.55873088,184.75,184.74,0.03]
[1755767837374,21.27873088,184.75,184.74,0.03]
[1755767837580,24.8690929,184.75,184.74,0.03]
[1755767837979,21.27873088,184.75,184.74,0.03]
[1755767838289,17.42497337,184.75,184.74,0.03]
[1755767838470,20.55873088,184.75,184.74,0.03]
[1755767838889,24.87025647,184.75,184.74,0.03]
[1755767839091,0.28432314,184.74,184.73,0.03]
[1755767839386,64.38520025,184.74,184.73,0.03]
[1755767841282,0.28432314,184.72,184.71,0.03]
[1755767841472,63.66520025,184.72,184.71,0.03]
[1755767841676,64.38520025,184.72,184.71,0.03]
[1755767842180,64.38520025,184.72,184.7,0.03]
[1755767842490,8.44709454,184.71,184.7,0.03]
[1755767843171,18.45367466,184.71,184.7,0.03]
[1755767843376,0.28432314,184.7,184.63,0.7]
[1755767843576,0.28432314,184.7,184.6,26.0]
[1755767843577,3.85375751,184.64,184.6,26.0]
[1755767843875,42.34,184.63,184.6,26.0]
[1755767844079,46.19375751,184.63,184.61,0.7]
[1755767844391,42.34,184.63,184.61,0.7]
[1755767845598,16.945319,184.72,184.61,4.55375751]
[1755767845798,3.85375751,184.67,184.62,3.85375751]
[1755767845977,42.34,184.66,184.62,3.85375751]
[1755767846180,42.34,184.66,184.63,0.7]
[1755767846380,42.34,184.66,184.64,0.7]
[1755767846587,46.19375751,184.66,184.64,0.7]
[1755767846895,43.0,184.66,184.61,3.85375751]
[1755767847092,3.85375751,184.65,184.62,0.7]
[1755767847285,42.38,184.64,184.6,0.03]
[1755767847490,42.38,184.64,184.63,0.7]
[1755767849528,46.23375751,184.64,184.63,0.7]
[1755767849685,42.38,184.64,184.63,0.7]
[1755767851284,42.36,184.64,184.63,0.7]
[1755767853212,2.82525775,184.68,184.63,0.7]
[1755767853421,46.21375751,184.67,184.64,0.7]
[1755767853805,3.85375751,184.66,184.64,0.7]
[1755767854006,42.36,184.65,184.64,0.7]
[1755767854900,42.36,184.65,184.62,4.55375751]
[1755767855122,42.36,184.65,184.63,0.7]
[1755767855820,42.36,184.65,184.62,0.7]
[1755767856405,42.36,184.65,184.63,0.7]
[1755767857230,42.36,184.65,184.6,105.83]
[1755767857405,42.36,184.65,184.61,0.7]
[1755767857608,42.36,184.65,184.62,0.7]
[1755767859014,46.21375751,184.65,184.62,0.7]
[1755767859519,42.36,184.65,184.62,0.7]
[1755767860211,42.36,184.65,184.61,0.7]
[1755767860411,42.36,184.65,184.61,4.55375751]
[1755767860811,43.02,184.65,184.61,0.7]
[1755767861210,43.02,184.65,184.6,105.83]
[1755767861211,0.66,184.64,184.6,83.68375751]
[1755767861529,46.87375751,184.65,184.6,84.38375751]
[1755767861701,46.87375751,184.65,184.61,0.7]
[1755767861901,0.66,184.64,184.6,79.83]
[1755767862103,0.66,184.64,184.6,80.53]
[1755767862505,4.51375751,184.64,184.6,80.53]
[1755767862712,0.66,184.64,184.6,80.53]
[1755767862898,0.66,184.64,184.6,0.73]
[1755767862899,4.51375751,184.64,184.6,0.73]
[1755767863098,0.66,184.63,184.62,0.03]
[1755767863626,4.51375751,184.63,184.62,0.03]
[1755767864212,0.66,184.63,184.62,0.03]
[1755767864619,4.51375751,184.63,184.62,0.03]
[1755767864923,4.51375751,184.65,184.62,0.03]
[1755767865126,42.38,184.63,184.62,0.03]
[1755767865519,43.04,184.63,184.62,0.03]
[1755767866606,46.89375751,184.63,184.62,0.03]
[1755767870204,43.04,184.63,184.62,0.03]
[1755767870411,46.89375751,184.63,184.62,0.03]
[1755767872827,43.04,184.63,184.62,0.03]
[1755767873021,46.89375751,184.63,184.62,0.03]
[1755767875135,0.68,184.63,184.62,0.03]
[1755767875336,2.82573933,184.65,184.62,0.69]
[1755767875517,3.85375751,184.63,184.62,0.03]
[1755767875718,42.46,184.64,184.62,0.03]
[1755767875927,3.85375751,184.63,184.62,0.03]
[1755767876634,4.53375751,184.63,184.62,0.03]
[1755767879031,46.99375751,184.63,184.62,0.03]
[1755767879423,43.14,184.63,184.62,0.03]
[1755767879628,46.99375751,184.63,184.62,0.03]
[1755767882924,43.14,184.63,184.62,0.03]
[1755767883123,46.99375751,184.63,184.62,0.03]
[1755767883535,43.14,184.63,184.62,0.03]
[1755767883929,46.99375751,184.63,184.62,0.03]
[1755767886434,45.60973272,184.63,184.62,0.03]
[1755767887826,3.14973272,184.63,184.62,0.03]
[1755767888048,38.98911352,184.68,184.62,0.03]
[1755767888251,3.14973272,184.63,184.62,0.03]
[1755767888459,43.22,184.63,184.62,0.03]
[1755767889062,45.68973272,184.63,184.62,0.03]
[1755767889775,45.00973272,184.63,184.62,0.03]
[1755767889975,45.68973272,184.63,184.62,0.03]
[1755767890462,2.8258595,184.68,184.62,0.69]
[1755767890643,2.46973272,184.64,184.62,0.69]
[1755767890843,45.66973272,184.63,184.62,0.03]
[1755767891352,42.52,184.63,184.62,0.03]
[1755767891550,45.66973272,184.63,184.62,0.03]
[1755767892157,43.2,184.63,184.62,0.03]
[1755767892369,45.04973272,184.63,184.62,0.03]
[1755767892556,2.46973272,184.63,184.62,0.03]
[1755767892871,45.06973272,184.63,184.62,0.03]
[1755767893537,45.74973272,184.63,184.6,0.03]
[1755767893737,0.68,184.62,184.6,0.03]
[1755767894043,45.06973272,184.61,184.6,0.03]
[1755767894465,45.74973272,184.61,184.6,0.03]
[1755767895051,69.22425761,184.61,184.6,0.03]
[1755767895246,13.59559401,184.6,184.58,0.03]
[1755767895458,12.3486636,184.59,184.58,0.03]
[1755767895653,55.6286636,184.59,184.58,0.03]
[1755767896451,51.0032227,184.59,184.58,0.03]
[1755767898277,64.59881671,184.59,184.58,0.03]
[1755767898475,21.99881671,184.59,184.58,0.03]
[1755767898653,64.55881671,184.59,184.58,0.03]
[1755767900276,50.9832227,184.59,184.58,0.03]
[1755767904579,13.59559401,184.58,184.54,0.03]
[1755767904773,3.86161135,184.55,184.54,0.03]
[1755767904968,46.46161135,184.55,184.54,0.03]
[1755767905161,47.16161135,184.55,184.54,0.03]
[1755767906154,60.75720536,184.55,184.54,0.03]
[1755767908555,60.75720536,184.55,184.46,1.02]
[1755767908761,14.29559401,184.54,184.46,1.02]
[1755767908966,43.26,184.53,184.46,1.02]
[1755767909166,3.86161135,184.48,184.47,0.72]
[1755767909369,42.56,184.48,184.47,0.72]
[1755767909570,46.42161135,184.48,184.46,0.3]
[1755767910073,46.42161135,184.48,184.47,0.72]
[1755767910461,46.42161135,184.48,184.46,0.3]
[1755767910661,3.86161135,184.47,184.46,0.3]
[1755767911364,46.46161135,184.47,184.46,0.3]
[1755767911772,47.16161135,184.47,184.46,0.3]
[1755767912135,42.6,184.47,184.46,0.3]
[1755767912385,46.46161135,184.47,184.46,0.3]
[1755767912691,46.50161135,184.47,184.46,0.3]
[1755767912973,42.64,184.47,184.46,0.3]
[1755767913182,46.50161135,184.47,184.46,0.3]
[1755767913859,46.50161135,184.47,184.46,1.02]
[1755767914369,3.86161135,184.47,184.46,0.3]
[1755767914569,46.48161135,184.47,184.46,0.3]
[1755767914772,46.48161135,184.47,184.46,1.02]
[1755767914973,46.48161135,184.47,184.46,0.3]
[1755767915175,46.48161135,184.47,184.46,0.33]
[1755767915785,46.46161135,184.47,184.46,1.05]
[1755767915964,46.46161135,184.47,184.46,0.33]
[1755767918782,47.16161135,184.47,184.46,0.33]
[1755767920792,46.46161135,184.47,184.46,0.33]
[1755767921163,3.86161135,184.47,184.46,0.33]
[1755767921367,46.44161135,184.47,184.46,0.33]
[1755767922472,42.58,184.47,184.46,0.33]
[1755767922670,46.42161135,184.47,184.46,0.33]
[1755767923170,42.56,184.47,184.46,0.33]
[1755767923371,46.42161135,184.47,184.46,0.33]
[1755767923787,3.86161135,184.47,184.46,0.33]
[1755767924090,46.40161135,184.47,184.46,0.33]
[1755767925199,3.861611,184.48,184.46,1.05]
[1755767925378,46.40161135,184.47,184.46,1.05]
[1755767925572,46.40161135,184.47,184.46,0.33]
[1755767925774,47.10161135,184.47,184.46,0.33]
[1755767927988,46.40161135,184.47,184.46,0.33]
[1755767928600,46.42161135,184.47,184.46,0.33]
[1755767928787,3.86161135,184.47,184.46,0.33]
[1755767928988,46.40161135,184.47,184.46,0.33]
[1755767929292,47.10161135,184.47,184.46,0.33]
[1755767930096,43.28,184.47,184.46,0.33]
[1755767930272,47.16161135,184.47,184.46,0.33]
[1755767930478,4.56161135,184.47,184.46,0.33]
[1755767930694,47.16161135,184.47,184.46,0.33]
[1755767930883,4.56161135,184.47,184.46,0.33]
[1755767931095,47.16161135,184.47,184.46,0.33]
[1755767931293,4.56161135,184.47,184.46,0.33]
[1755767931485,47.16161135,184.47,184.46,0.33]
[1755767932001,16.302133,184.5,184.46,0.33]
[1755767932184,3.86161135,184.48,184.46,1.05]
[1755767932377,46.50161135,184.47,184.46,1.05]
[1755767932574,46.50161135,184.47,184.46,0.33]
[1755767932776,3.86161135,184.47,184.46,0.33]
[1755767933002,0.7,184.5,184.46,1.05]
[1755767933187,3.86161135,184.47,184.46,1.05]
[1755767933516,42.62,184.47,184.46,0.33]
[1755767933701,0.7,184.54,184.46,4.87161135]
[1755767934008,46.52161135,184.53,184.48,3.86161135]
[1755767934213,0.76,184.56,184.46,0.33]
[1755767934214,46.52161135,184.52,184.49,0.68]
[1755767934390,46.52161135,184.52,184.46,0.33]
[1755767934391,3.86161135,184.51,184.47,0.68]
[1755767934707,3.86161135,184.51,184.48,0.68]
[1755767934879,0.7,184.5,184.46,0.33]
[1755767935079,3.86161135,184.47,184.46,0.33]
[1755767935507,42.7,184.47,184.46,1.01]
[1755767935977,46.56161135,184.47,184.46,1.01]
[1755767936490,46.56161135,184.47,184.46,0.33]
[1755767937316,42.68,184.47,184.46,1.01]
[1755767937617,42.68,184.47,184.46,0.33]
[1755767937792,3.86161135,184.47,184.46,0.33]
[1755767938107,46.54161135,184.47,184.46,0.33]
[1755767938884,42.68,184.47,184.46,0.33]
[1755767939087,46.54161135,184.47,184.46,0.33]
[1755767939293,0.7,184.52,184.46,1.01]
[1755767939507,3.86161135,184.5,184.47,0.68]
[1755767939804,3.86161135,184.51,184.48,0.68]
[1755767940006,42.7,184.49,184.46,1.01]
[1755767940198,46.56161135,184.49,184.46,1.01]
[1755767940512,0.7,184.54,184.47,4.54161135]
[1755767940685,3.92161135,184.56,184.51,3.86161135]
[1755767940887,42.68,184.53,184.52,0.68]
[1755767941107,42.7,184.53,184.52,0.68]
[1755767942112,0.06,184.56,184.52,4.54161135]
[1755767942290,0.06,184.56,184.55,3.86161135]
[1755767942688,0.06,184.58,184.55,30.54161135]
[1755767942903,0.06,184.58,184.56,0.68]
[1755767943094,3.92161135,184.58,184.55,2.171376]
[1755767943293,3.86161135,184.56,184.55,2.171376]
[1755767943493,47.32161135,184.56,184.55,2.171376]
[1755767943881,0.06,184.58,184.51,3.86161135]
[1755767944085,3.86161135,184.56,184.51,3.86161135]
[1755767944281,0.7,184.56,184.51,0.68]
[1755767944514,3.86161135,184.55,184.52,0.68]
[1755767944702,3.86161135,184.54,184.49,30.54161135]
[1755767944903,42.8,184.53,184.5,26.68]
[1755767945690,3.86161135,184.54,184.5,26.68]
[1755767945903,42.8,184.52,184.5,26.68]
[1755767946496,0.7,184.55,184.5,0.68]
[1755767946715,3.86161135,184.53,184.49,3.86161135]
[1755767946917,42.78,184.52,184.49,4.54161135]
[1755767947092,42.78,184.52,184.5,0.68]
[1755767947495,42.78,184.52,184.47,42.292394]
[1755767947699,42.78,184.52,184.49,3.86161135]
[1755767948117,42.78,184.52,184.49,4.54161135]
[1755767948617,42.78,184.52,184.5,0.68]
[1755767949116,42.78,184.52,184.5,4.54161135]
[1755767949820,3.86161135,184.56,184.51,0.68]
[1755767950000,42.76,184.53,184.52,0.68]
[1755767950206,42.8,184.54,184.52,0.68]
[1755767950802,0.06,184.56,184.53,4.54161135]
[1755767951006,0.06,184.56,184.55,3.86161135]
[1755767951007,42.86,184.56,184.55,3.86161135]
[1755767951210,0.06,184.56,184.55,4.54161135]
[1755767951412,0.06,184.56,184.55,30.54161135]
[1755767953319,0.06,184.56,184.55,4.54161135]
[1755767953718,0.06,184.56,184.55,30.54161135]
[1755767954727,0.06,184.56,184.55,4.54161135]
[1755767955405,0.06,184.56,184.55,30.54161135]
[1755767955712,0.06,184.58,184.57,23.59559401]
[1755767955895,0.06,184.6,184.59,26.0]
[1755767956099,0.06,184.7,184.6,23.59559401]
[1755767956301,0.06,184.7,184.63,30.14593449]
[1755767956504,0.06,184.7,184.63,34.53254856]
[1755767956714,0.06,184.7,184.63,35.21254856]
[1755767956915,0.06,184.7,184.63,30.82593449]
[1755767957501,0.06,184.7,184.63,40.82593449]
[1755767957902,0.06,184.7,184.69,26.0]
[1755767958114,0.06,184.7,184.69,4.14593449]
[1755767958333,0.06,184.7,184.69,30.82593449]
[1755767958540,0.06,184.7,184.69,3.86161135]
[1755767958708,0.06,184.7,184.68,3.86161135]
[1755767958911,0.06,184.7,184.69,3.86161135]
[1755767959844,4.62161135,184.7,184.61,3.524823]
[1755767960132,3.86161135,184.68,184.63,3.86161135]
[1755767960439,0.06,184.7,184.63,3.86161135]
[1755767960440,0.7,184.67,184.64,3.86161135]
[1755767960601,0.7,184.67,184.64,29.86161135]
[1755767960803,0.7,184.67,184.61,4.204823]
[1755767960804,0.7,184.66,184.63,3.86161135]
[1755767962000,0.7,184.68,184.64,3.86161135]
[1755767962204,0.7,184.67,184.64,3.86161135]
[1755767965015,0.67,184.65,184.61,7.38643435]
[1755767965211,3.86161135,184.66,184.61,7.38643435]
[1755767965427,0.67,184.64,184.63,26.0]
[1755767966025,0.67,184.64,184.62,26.0]
[1755767966645,0.67,184.63,184.62,26.0]
[1755767966938,0.67,184.63,184.61,26.0]
[1755767967114,3.86161135,184.65,184.61,26.0]
[1755767967431,0.67,184.64,184.61,29.86161135]
[1755767967636,3.86161135,184.66,184.61,29.86161135]
[1755767967845,0.67,184.66,184.62,3.86161135]
[1755767968440,0.73,184.7,184.65,3.86161135]
[1755767968624,0.73,184.7,184.66,3.86161135]
[1755767968625,0.06,184.7,184.66,3.86161135]
[1755767968825,0.67,184.69,184.67,3.86161135]
[1755767969138,0.06,184.7,184.68,3.86161135]
[1755767969346,0.73,184.7,184.68,3.86161135]
[1755767969647,0.06,184.7,184.67,3.86161135]
[1755767969816,0.06,184.7,184.68,3.86161135]
[1755767970716,0.73,184.7,184.68,3.86161135]
[1755767970922,0.73,184.7,184.67,3.86161135]
[1755767971328,0.73,184.7,184.66,26.0]
[1755767971539,0.67,184.69,184.66,26.0]
[1755767971839,0.06,184.7,184.68,3.86161135]
[1755767972218,0.06,184.7,184.66,0.68]
[1755767972435,0.06,184.7,184.68,3.86161135]
[1755767972740,0.06,184.7,184.67,3.86161135]
[1755767972946,0.73,184.7,184.67,3.86161135]
[1755767973145,0.67,184.69,184.64,26.68]
[1755767973446,0.67,184.69,184.66,3.86161135]
[1755767973737,0.67,184.69,184.67,3.86161135]
[1755767973929,0.67,184.69,184.64,0.68]
[1755767974130,0.06,184.7,184.67,3.86161135]
[1755767974844,0.73,184.7,184.67,3.86161135]
[1755767975009,0.67,184.69,184.66,26.0]
[1755767975210,0.67,184.69,184.67,3.86161135]
[1755767976739,0.06,184.7,184.67,3.86161135]
[1755767976956,0.67,184.69,184.66,26.0]
[1755767977141,0.67,184.69,184.66,29.86161135]
[1755767977443,0.06,184.7,184.66,29.86161135]
[1755767977611,0.73,184.7,184.66,29.86161135]
[1755767977815,0.73,184.7,184.67,3.86161135]
[1755767978012,0.06,184.7,184.68,3.86161135]
[1755767978935,0.06,184.7,184.65,0.68]
[1755767979130,0.73,184.7,184.66,3.86161135]
[1755767979329,3.86161135,184.67,184.63,83.661611]
[1755767979527,0.06,184.7,184.63,79.8]
[1755767979528,3.86161135,184.66,184.63,79.8]
[1755767979734,4.53161135,184.67,184.63,105.8]
[1755767980055,4.53161135,184.67,184.63,79.8]
[1755767980334,0.67,184.66,184.63,109.66161135]
[1755767980542,0.67,184.65,184.63,105.8]
[1755767980724,4.53161135,184.67,184.63,105.8]
[1755767980916,3.86161135,184.67,184.63,105.8]
[1755767981235,0.67,184.66,184.63,105.8]
[1755767981433,3.86161135,184.67,184.63,105.8]
[1755767981623,0.67,184.65,184.63,105.8]
[1755767981965,0.67,184.64,184.61,83.66161135]
[1755767982281,0.67,184.64,184.61,79.8]
[1755767982409,0.67,184.64,184.61,105.8]
[1755767982943,0.67,184.64,184.61,109.66161135]
[1755767983753,0.67,184.64,184.61,105.8]
[1755767983914,0.67,184.66,184.61,109.66161135]
[1755767984114,0.67,184.65,184.61,109.66161135]
[1755767984360,3.86161135,184.66,184.61,109.66161135]
[1755767984557,0.67,184.64,184.61,109.66161135]
[1755767985648,3.86161135,184.66,184.61,26.0]
[1755767985820,0.06,184.7,184.6,0.03]
[1755767985821,0.67,184.63,184.6,0.03]
[1755767986239,4.53161135,184.65,184.6,0.03]
[1755767986433,0.67,184.64,184.6,0.03]
[1755767986835,0.67,184.63,184.6,0.03]
[1755767987234,0.67,184.63,184.6,3.89161135]
[1755767987437,3.86161135,184.65,184.6,3.89161135]
[1755767987760,0.67,184.62,184.6,0.03]
[1755767988262,0.67,184.64,184.6,0.03]
[1755767988472,0.67,184.62,184.6,0.03]
[1755767988957,46.64161135,184.65,184.6,0.03]
[1755767989145,0.67,184.63,184.6,0.03]
[1755767990552,0.67,184.62,184.6,0.03]
[1755767992300,0.67,184.61,184.6,0.03]
[1755767992965,42.74,184.65,184.6,0.03]
[1755767993148,3.86161135,184.63,184.6,0.03]
[1755767993340,0.72,184.61,184.6,0.03]
[1755767995203,3.86161135,184.63,184.6,0.03]
[1755767995418,0.72,184.62,184.6,0.03]
[1755767997108,0.72,184.67,184.61,4.52161135]
[1755767997313,42.72,184.66,184.64,3.86161135]
[1755767997593,42.72,184.66,184.65,3.86161135]
[1755767997972,0.06,184.68,184.65,3.86161135]
[1755767998496,0.06,184.68,184.66,3.86161135]
[1755767998714,0.06,184.68,184.62,26.0]
[1755767998715,0.06,184.68,184.67,3.86161135]
[1755768000206,0.06,184.68,184.65,0.66]
[1755768000365,0.06,184.68,184.67,3.86161135]
[1755768000571,4.64161135,184.68,184.64,26.0]
[1755768000785,3.86161135,184.66,184.61,29.86161135]
[1755768000993,0.72,184.66,184.64,26.0]